fUSD/lending_fUSD_20260404
["ID","MTS","AMOUNT","RATE_DAILY","PERIOD"]
[419691559,1775295042756,-150.0,0.00015573,2]
[419691561,1775295042765,-150.0,0.00015578,2]
[419691563,1775295042774,-150.0,0.00015579,2]
[419691564,1775295042783,-150.0,0.00015583,2]
[419691565,1775295042792,-500.0,0.00015584,2]
[419691566,1775295042801,-151.0,0.00015584,2]
[419691567,1775295042810,-150.0,0.00015587,2]
[419691568,1775295042819,-501.0,0.00015588,4]
[419691569,1775295042828,-700.0,0.0001559,2]
[419691570,1775295042838,-150.0,0.00015591,2]
[419691571,1775295042847,-153.0,0.00015595,2]
[419691572,1775295042856,-150.0,0.000156,2]
[419691573,1775295042865,-6800.0,0.000156,5]
[419691574,1775295042874,-150.0,0.00015614,2]
[419691575,1775295042883,-150.0,0.00015621,2]
[419691576,1775295042892,-150.0,0.00015622,2]
[419691577,1775295042902,-150.0,0.00015624,2]
[419691578,1775295042911,-150.0,0.00015626,2]
[419691579,1775295042921,-150.0,0.00015627,2]
[419691580,1775295042930,-10935.6,0.00015632,2]
[419691581,1775295042940,-150.0,0.00015639,2]
[419691582,1775295042950,-500.0,0.00015639,2]
[419691583,1775295042959,-151.0,0.00015639,2]
[419691584,1775295042969,-296.89,0.00015642,2]
[419691585,1775295042980,-150.0,0.00015644,2]
[419691586,1775295042990,-150.0,0.00015652,2]
[419691587,1775295043001,-150.0,0.0001566,2]
[419691588,1775295043010,-150.0,0.00015663,2]
[419691589,1775295043021,-350.0,0.00015665,2]
[419691590,1775295043031,-5888.0,0.00015666,2]
[419691591,1775295043041,-150.0,0.00015667,2]
[419691592,1775295043050,-150.0,0.00015669,2]
[419691593,1775295043061,-8936.658,0.00015671,2]
[419691594,1775295043071,-505.626,0.00015671,2]
[419691595,1775295043080,-5413.91846834,0.00015679,2]
[419691596,1775295043090,-150.0,0.0001568,2]
[419691598,1775295043457,-150.0,0.0001568,2]
[419691599,1775295043469,-150.0,0.0001568,2]
[419691600,1775295043479,-150.0,0.00015689,2]
[419691601,1775295043489,-150.0,0.0001569,2]
[419691602,1775295043499,-150.0,0.00015694,2]
[419691603,1775295043510,-500.0,0.00015694,2]
[419691604,1775295043520,-151.0,0.00015694,2]
[419691605,1775295043530,-8500.0,0.000157,5]
[419691606,1775295043540,-150.0,0.00015705,2]
[419691607,1775295043549,-150.0,0.00015711,2]
[419691608,1775295043559,-150.0,0.00015718,2]
[419691609,1775295043569,-150.0,0.00015722,2]
[419691610,1775295043579,-2230.98110914,0.00015722,2]
[419691611,1775295043589,-4437.0,0.00015724,2]
[419691613,1775295043599,-150.0,0.00015724,2]
[419691615,1775295043609,-150.0,0.00015728,2]
[419691617,1775295043619,-150.0,0.00015733,2]
[419691619,1775295043629,-150.0,0.00015733,2]
[419691621,1775295043638,-150.0,0.00015733,2]
[419691622,1775295043648,-150.0,0.00015742,2]
[419691624,1775295043659,-181.08010149,0.00015747,2]
[419691627,1775295043669,-150.0,0.00015747,2]
[419691629,1775295043679,-500.0,0.00015749,2]
[419691631,1775295043688,-151.0,0.00015749,2]
[419691633,1775295043698,-164.0,0.00015753,2]
[419691635,1775295043708,-150.0,0.00015756,2]
[419691637,1775295043718,-906.0,0.0001576,2]
[419691639,1775295043728,-150.0,0.00015762,2]
[419691641,1775295043738,-150.0,0.00015771,2]
[419691643,1775295043747,-150.0,0.00015778,2]
[419691645,1775295043757,-483.76,0.00015779,2]
[419691647,1775295043767,-483.76,0.00015779,2]
[419691649,1775295043776,-483.76,0.00015779,2]
[419691651,1775295043786,-483.76,0.00015779,2]
[419691653,1775295043795,-483.74,0.00015779,2]
[419691655,1775295043805,-6189.85633863,0.00015779,2]
[419691657,1775295043815,-150.0,0.00015779,2]
[419691659,1775295043825,-150.0,0.00015787,2]
[419691661,1775295043834,-150.0,0.00015787,2]
[419691663,1775295043844,-150.0,0.00015789,2]
[419691665,1775295043854,-150.0,0.00015791,2]
[419691667,1775295043863,-6189.85633861,0.00015792,2]
[419691670,1775295043873,-150.0,0.00015794,2]
[419691673,1775295043883,-150.0,0.00015796,2]
[419691676,1775295043892,-150.0,0.000158,2]
[419691678,1775295043902,-1700.0,0.000158,5]
[419691682,1775295043912,-6189.85633861,0.00015806,2]
[419691684,1775295043922,-2230.98110914,0.00015811,2]
[419691686,1775295043933,-150.0,0.00015812,2]
[419691688,1775295043943,-6189.85633861,0.00015819,2]
[419691690,1775295043952,-150.0,0.00015822,2]
[419691692,1775295043962,-150.0,0.0001583,2]
[419691694,1775295043972,-150.0,0.00015832,2]
[419691696,1775295043982,-184.84985572,0.00015832,2]
[419691698,1775295043992,-6189.85633861,0.00015833,2]
[419691700,1775295044002,-150.0,0.00015834,2]
[419691702,1775295044012,-150.0,0.0001584,2]
[419691704,1775295044023,-150.0,0.00015844,2]
[419691706,1775295044033,-150.0,0.00015845,2]
[419691708,1775295044043,-6189.85633861,0.00015846,2]
[419691710,1775295044052,-6189.85633861,0.0001586,2]
[419691712,1775295044062,-150.0,0.00015861,2]
[419691713,1775295044073,-150.0,0.00015864,2]
[419691714,1775295044082,-150.0,0.00015867,2]
[419691715,1775295044092,-166.67,0.0001587,2]
[419691716,1775295044101,-200.0,0.00015871,2]
[419691717,1775295044111,-200.0,0.00015872,2]
[419691718,1775295044121,-500.0,0.00015873,2]
[419691719,1775295044131,-500.0,0.00015873,2]
[419691720,1775295044142,-6189.85633861,0.00015873,2]
[419691721,1775295044151,-150.0,0.00015874,2]
[419691722,1775295044161,-6189.85633861,0.00015887,2]
[419691723,1775295044171,-350.0,0.00015887,2]
[419691724,1775295044181,-150.0,0.00015889,2]
[419691726,1775295044191,-150.0,0.0001589,2]
[419691728,1775295044201,-150.0,0.00015893,2]
[419691730,1775295044211,-150.0,0.00015893,2]
[419691732,1775295044221,-4000.0,0.00015895,2]
[419691734,1775295044231,-150.0,0.00015897,2]
[419691736,1775295044240,-150.0,0.00015898,2]
[419691738,1775295044250,-169.571091,0.000159,2]
[419691740,1775295044260,-1000.0,0.000159,2]
[419691742,1775295044270,-10000.0,0.000159,2]
[419691744,1775295044279,-150.0,0.000159,2]
[419691746,1775295044289,-150.0,0.000159,2]
[419691748,1775295044298,-2230.98110914,0.000159,2]
[419691750,1775295044307,-5000.0,0.000159,2]
[419691752,1775295044316,-1903.77668359,0.000159,2]
[419691753,1775295044325,-150.0,0.000159,2]
[419691755,1775295044335,-6189.85633861,0.000159,2]
[419691757,1775295044345,-1700.0,0.000159,5]
[419691759,1775295044355,-151.06142023,0.000159,2]
[419691761,1775295044364,-202.77599014,0.000159,2]
[419691764,1775295044375,-151.12106257,0.000159,2]
[419691766,1775295044385,-1889.15413697,0.000159,2]
[419691768,1775295044394,-1933.51006069,0.000159,2]
[419691770,1775295044404,-817.23526846,0.000159,2]
[419691772,1775295044413,-150.0,0.00015906,2]
[419691774,1775295044424,-150.0,0.00015911,2]
[419691776,1775295044433,-150.0,0.00015916,2]
[419691778,1775295044443,-350.0,0.00015925,2]
[419691780,1775295044453,-150.0,0.0001593,2]
[419691782,1775295044464,-150.0,0.00015932,2]
[419691784,1775295044473,-150.0,0.00015933,2]
[419691786,1775295044483,-906.0,0.00015937,2]
[419691788,1775295044492,-350.0,0.00015938,2]
[419691790,1775295044502,-150.0,0.00015945,2]
[419691792,1775295044511,-150.0,0.00015947,2]
[419691794,1775295044521,-150.0,0.00015948,2]
[419691796,1775295044530,-150.0,0.00015956,2]
[419691798,1775295044542,-906.0,0.00015957,2]
[419691800,1775295044551,-150.0,0.00015958,2]
[419691802,1775295044561,-150.0,0.00015966,2]
[419691804,1775295044570,-163.0,0.0001597,2]
[419691806,1775295044580,-500.0,0.00015973,2]
[419691807,1775295044589,-500.0,0.00015973,2]
[419691809,1775295044598,-500.0,0.00015973,2]
[419691810,1775295044608,-500.0,0.00015973,2]
[419691811,1775295044617,-501.31463682,0.00015973,2]
[419691812,1775295044627,-500.0,0.00015973,2]
[419691813,1775295044637,-500.0,0.00015973,2]
[419691814,1775295044647,-500.0,0.00015973,2]
[419691815,1775295044657,-461.35735938,0.00015973,2]
[419691816,1775295044666,-500.0,0.00015973,2]
[419691817,1775295044676,-150.0,0.00015978,2]
[419691818,1775295044685,-214.37120963,0.00015984,2]
[419691819,1775295044695,-240.29910606,0.00015984,2]
[419691820,1775295044704,-183.61784369,0.00015984,2]
[419691821,1775295044714,-215.2940998,0.00015984,2]
[419691822,1775295044723,-394.02804313,0.00015984,2]
[419691823,1775295044733,-184.8003649,0.00015984,2]
[419691824,1775295044742,-377.99690901,0.00015984,2]
[419691825,1775295044752,-160.79670765,0.00015984,2]
[419691826,1775295044761,-472.92096093,0.0001599,2]
[419691827,1775295044770,-472.92096093,0.0001599,2]
[419691828,1775295044779,-472.92096093,0.0001599,2]
[419691829,1775295044788,-151.0,0.00015997,2]
[419691830,1775295044798,-1072.04030549,0.00015998,5]
[419691831,1775295044807,-5523.0,0.00015999,5]
[419691832,1775295044817,-666.0,0.00015999,2]
[419691833,1775295044827,-666.0,0.00015999,2]
[419691834,1775295044836,-500.0,0.00015999,2]
[419691835,1775295044846,-500.0,0.00015999,2]
[419691836,1775295044855,-500.0,0.00015999,2]
[419691837,1775295044865,-500.0,0.00015999,2]
[419691838,1775295044877,-500.0,0.00015999,2]
[419691839,1775295044886,-500.0,0.00015999,2]
[419691840,1775295044896,-502.29456068,0.00015999,2]
[419691841,1775295044906,-500.0,0.00015999,2]
[419691842,1775295044915,-500.0,0.00015999,2]
[419691843,1775295044925,-500.0,0.00015999,2]
[419691844,1775295044935,-500.0,0.00015999,2]
[419691845,1775295044945,-484.31700749,0.00015999,2]
[419691846,1775295044955,-500.0,0.00015999,2]
[419691847,1775295044965,-500.0,0.00015999,2]
[419691848,1775295044974,-500.0,0.00015999,2]
[419691849,1775295044984,-500.0,0.00015999,2]
[419691850,1775295044993,-500.0,0.00015999,2]
[419691851,1775295045003,-500.0,0.00015999,2]
[419691852,1775295045013,-500.0,0.00015999,2]
[419691853,1775295045023,-500.0,0.00015999,2]
[419691854,1775295045033,-515.28433318,0.00015999,2]
[419691855,1775295045043,-500.0,0.00015999,2]
[419691856,1775295045053,-500.0,0.00015999,2]
[419691857,1775295045062,-500.0,0.00015999,2]
[419691858,1775295045072,-500.0,0.00015999,2]
[419691859,1775295045082,-500.0,0.00015999,2]
[419691860,1775295045091,-500.0,0.00015999,2]
[419691861,1775295045101,-500.0,0.00015999,2]
[419691862,1775295045110,-500.0,0.00015999,2]
[419691863,1775295045120,-500.0,0.00015999,2]
[419691864,1775295045130,-500.0,0.00015999,2]
[419691865,1775295045139,-500.0,0.00015999,2]
[419691866,1775295045149,-500.0,0.00015999,2]
[419691867,1775295045159,-500.0,0.00015999,2]
[419691868,1775295045169,-500.0,0.00015999,2]
[419691869,1775295045178,-500.0,0.00015999,2]
[419691870,1775295045187,-500.0,0.00015999,2]
[419691871,1775295045197,-500.0,0.00015999,2]
[419691872,1775295045207,-500.0,0.00015999,2]
[419691873,1775295045217,-500.0,0.00015999,2]
[419691874,1775295045227,-500.0,0.00015999,2]
[419691875,1775295045237,-500.0,0.00015999,2]
[419691876,1775295045246,-500.0,0.00015999,2]
[419691877,1775295045256,-500.0,0.00015999,2]
[419691878,1775295045265,-500.0,0.00015999,2]
[419691879,1775295045275,-500.0,0.00015999,2]
[419691880,1775295045285,-500.0,0.00015999,2]
[419691881,1775295045294,-500.0,0.00015999,2]
[419691882,1775295045304,-500.0,0.00015999,2]
[419691883,1775295045314,-500.0,0.00015999,2]
[419691884,1775295045323,-500.0,0.00015999,2]
[419691885,1775295045332,-500.0,0.00015999,2]
[419691886,1775295045343,-500.0,0.00015999,2]
[419691887,1775295045352,-500.0,0.00015999,2]
[419691888,1775295045362,-500.0,0.00015999,2]
[419691889,1775295045372,-500.0,0.00015999,2]
[419691890,1775295045382,-500.0,0.00015999,2]
[419691891,1775295045392,-500.0,0.00015999,2]
[419691892,1775295045402,-500.0,0.00015999,2]
[419691893,1775295045412,-500.0,0.00015999,2]
[419691894,1775295045422,-500.0,0.00015999,2]
[419691895,1775295045432,-500.0,0.00015999,2]
[419691896,1775295045442,-500.0,0.00015999,2]
[419691897,1775295045451,-500.0,0.00015999,2]
[419691898,1775295045461,-500.0,0.00015999,2]
[419691899,1775295045470,-500.0,0.00015999,2]
[419691900,1775295045480,-500.0,0.00015999,2]
[419691901,1775295045489,-500.0,0.00015999,2]
[419691902,1775295045499,-500.0,0.00015999,2]
[419691903,1775295045508,-500.0,0.00015999,2]
[419691904,1775295045519,-500.0,0.00015999,2]
[419691905,1775295045528,-500.0,0.00015999,2]
[419691906,1775295045538,-520.24272845,0.00015999,2]
[419691907,1775295045547,-500.0,0.00015999,2]
[419691908,1775295045557,-500.0,0.00015999,2]
[419691909,1775295045566,-500.0,0.00015999,2]
[419691910,1775295045576,-500.0,0.00015999,2]
[419691911,1775295045585,-500.0,0.00015999,2]
[419691912,1775295045594,-150.23775673,0.00016,2]
[419691913,1775295045604,-203.63029902,0.00016,2]
[419691914,1775295045614,-152.61128617,0.00016,2]
[419691915,1775295045624,-153.95215506,0.00016,2]
[419691916,1775295045634,-152.90460209,0.00016,2]
[419691917,1775295045643,-150.33770113,0.00016,2]
[419691918,1775295045653,-256.52934676,0.00016,2]
[419691919,1775295045663,-253.78223798,0.00016,2]
[419691921,1775295045673,-151.90220774,0.00016,2]
[419691922,1775295045682,-151.30611776,0.00016,2]
[419691924,1775295045692,-287.70807985,0.00016,2]
[419691925,1775295045703,-207.04675366,0.00016,2]
[419691926,1775295045713,-299.394197,0.00016,2]
[419691927,1775295045724,-153.45263565,0.00016,2]
[419691928,1775295045734,-352656.56841095,0.00016,2]
[419691929,1775295045744,-770176.22058063,0.00016,6]
[419691930,1775295045754,-4649871.46940008,0.00016,2]
[419691931,1775295046513,-279.20215073,0.00016,2]
[419691932,1775295046524,-943.78799,0.00016,2]
[419691933,1775295046585,-32835.0941416,0.00016,2]
[419691934,1775295046620,-461.38777926,0.00016,2]
[419691938,1775295047723,-171.31798308,0.00015984,2]
[419691939,1775295047733,-731.17905162,0.00016,2]
[419691940,1775295047748,-92943.14801624,0.00016,2]
[419691941,1775295047759,-5064.69384664,0.00016,2]
[419691942,1775295047771,-525.568331,0.00016,2]
[419691943,1775295047782,-515.642885,0.00016,2]
[419691944,1775295047810,-1035.08389315,0.00016,2]
[419691968,1775296231898,-250.0,0.00013,2]
[419691969,1775296231910,-250.0,0.00013003,2]
[419691970,1775296231921,-501.0,0.00013111,2]
[419691971,1775296231931,-164.89775626,0.00013326,2]
[419691972,1775296231941,-150.0,0.00013699,2]
[419691973,1775296231951,-155.14456622,0.00013812,2]
[419691974,1775296231960,-150.0,0.00013973,2]
[419691975,1775296231971,-219.28053588,0.00014192,2]
[419691976,1775296231980,-172.46068743,0.0001429,2]
[419691977,1775296232004,-127.53931257,0.0001429,2]
[419691978,1775296232013,-300.0,0.0001429,2]
[419691979,1775296232022,-151.0,0.00014291,2]
[419691980,1775296232031,-151.0,0.00014291,2]
[419691981,1775296232040,-151.0,0.00014291,2]
[419691982,1775296232050,-151.0,0.00014291,2]
[419691983,1775296232060,-151.0,0.00014291,2]
[419691984,1775296232070,-151.0,0.00014291,2]
[419691985,1775296232080,-249.82925033,0.00014291,2]
[419691986,1775296232092,-240.05,0.000143,2]
[419691987,1775296232102,-300.0,0.000143,2]
[419691988,1775296232112,-300.0,0.000143,2]
[419691989,1775296232122,-300.0,0.000143,2]
[419691990,1775296232135,-300.0,0.000143,2]
[419691991,1775296232144,-195.0,0.000143,2]
[419691992,1775296232153,-195.0,0.000143,2]
[419691993,1775296232163,-195.0,0.000143,2]
[419691994,1775296232174,-195.0,0.000143,2]
[419691995,1775296232183,-195.0,0.000143,2]
[419691996,1775296232193,-2500.0,0.000143,2]
[419691997,1775296232203,-2500.0,0.000143,2]
[419691998,1775296232213,-2500.0,0.000143,2]
[419692000,1775296232222,-2500.0,0.000143,2]
[419692002,1775296232231,-2500.0,0.000143,2]
[419692004,1775296232241,-354.375562,0.000143,2]
[419692006,1775296232250,-500.0,0.000143,2]
[419692008,1775296232259,-500.0,0.000143,2]
[419692010,1775296232268,-500.0,0.000143,2]
[419692012,1775296232278,-500.0,0.000143,2]
[419692014,1775296232287,-500.0,0.000143,2]
[419692016,1775296232296,-250.0,0.000143,2]
[419692018,1775296232305,-300.0,0.000143,2]
[419692020,1775296232314,-300.0,0.000143,2]
[419692022,1775296232324,-290.49311555,0.000143,2]
[419692024,1775296232332,-251.03397785,0.00014422,2]
[419692026,1775296232341,-240.05,0.00014574,2]
[419692028,1775296232351,-225.19,0.00014615,3]
[419692029,1775296232360,-883.66,0.00014619,2]
[419692030,1775296232370,-150.0,0.00014661,2]
[419692031,1775296232379,-3240.0,0.00014677,2]
[419692032,1775296232388,-160.29,0.00014697,2]
[419692033,1775296232398,-1731.72,0.00014701,2]
[419692034,1775296232407,-1230.34,0.00014719,2]
[419692035,1775296232416,-240.05,0.00014848,2]
[419692036,1775296232425,-300.0,0.00015,2]
[419692037,1775296232435,-240.05,0.00015122,2]
[419692038,1775296232444,-200.0,0.00015123,2]
[419692039,1775296232453,-500.0,0.00015199,2]
[419692040,1775296232462,-500.0,0.00015199,2]
[419692041,1775296232471,-500.0,0.00015199,2]
[419692042,1775296232480,-500.0,0.00015199,2]
[419692043,1775296232489,-500.0,0.00015199,2]
[419692044,1775296232498,-500.0,0.00015199,2]
[419692045,1775296232507,-500.0,0.00015199,2]
[419692046,1775296232516,-500.0,0.00015199,2]
[419692047,1775296232526,-500.0,0.00015199,2]
[419692048,1775296232535,-500.0,0.00015199,2]
[419692049,1775296232545,-500.0,0.00015199,2]
[419692050,1775296232555,-500.0,0.00015199,2]
[419692051,1775296232564,-500.0,0.00015199,2]
[419692052,1775296232573,-500.0,0.00015199,2]
[419692053,1775296232582,-500.0,0.00015199,2]
[419692054,1775296232593,-500.0,0.00015199,2]
[419692055,1775296232604,-500.0,0.00015199,2]
[419692056,1775296232614,-500.0,0.00015199,2]
[419692057,1775296232623,-500.0,0.00015199,2]
[419692058,1775296232634,-500.0,0.00015199,2]
[419692059,1775296232644,-151.0,0.00015199,2]
[419692060,1775296232653,-500.0,0.00015199,2]
[419692061,1775296232664,-500.0,0.00015199,2]
[419692062,1775296232673,-500.0,0.00015199,2]
[419692063,1775296232682,-174.61919141,0.00015199,2]
[419692064,1775296232692,-500.0,0.00015254,2]
[419692065,1775296232702,-151.0,0.00015254,2]
[419692066,1775296232714,-500.0,0.00015309,2]
[419692067,1775296232724,-151.0,0.00015309,2]
[419692068,1775296232733,-500.0,0.00015364,2]
[419692069,1775296232744,-151.0,0.00015364,2]
[419692070,1775296232753,-240.07,0.00015396,2]
[419692071,1775296232763,-2000.0,0.000154,2]
[419692072,1775296232774,-500.0,0.00015419,2]
[419692073,1775296232784,-151.0,0.00015419,2]
[419692074,1775296232793,-500.0,0.00015436,2]
[419692075,1775296232803,-153.40312232,0.00015456,2]
[419692076,1775296232817,-187.59687768,0.00015456,2]
[419692077,1775296232827,-500.0,0.00015474,2]
[419692078,1775296232838,-151.0,0.00015474,2]
[419692079,1775296232847,-160.29,0.00015514,2]
[419692080,1775296232856,-500.0,0.00015529,2]
[419692081,1775296232866,-188.11543045,0.00015529,2]
[419692082,1775296232875,-219.28053588,0.00015539,2]
[419692083,1775296232885,-341.0,0.00015567,2]
[419692084,1775296232894,-251.42472722,0.00015575,2]
[419692085,1775296232907,-98.57527278,0.00015575,2]
[419692086,1775296232916,-201.19917241,0.00015584,2]
[419692087,1775296232931,-298.80082759,0.00015584,2]
[419692088,1775296232941,-2000.0,0.000156,2]
[419692089,1775296232950,-200.0,0.000156,5]
[419692090,1775296232959,-341.0,0.00015603,2]
[419692091,1775296232968,-5888.0,0.00015636,2]
[419692092,1775296232977,-500.0,0.00015639,2]
[419692093,1775296232987,-420.0,0.00015651,2]
[419692094,1775296232996,-4271.0,0.00015656,2]
[419692095,1775296233005,-500.0,0.00015694,2]
[419692096,1775296233015,-341.0,0.00015695,2]
[419692097,1775296233025,-500.0,0.000157,5]
[419692098,1775296233035,-341.0,0.00015702,2]
[419692099,1775296233047,-700.0,0.00015704,2]
[419692100,1775296233056,-1119.93558461,0.00015717,2]
[419692101,1775296233065,-1437.87402642,0.0001572,2]
[419692102,1775296233084,-537.98258966,0.0001572,2]
[419692103,1775296233129,-410.55372032,0.0001572,2]
[419692104,1775296233142,-515.1394,0.0001572,2]
[419692106,1775296238121,-251.03397785,0.0001572,2]
[419692107,1775296240268,-356.4230969,0.0001572,2]
[419692117,1775296246199,-565.6000001,0.0001487,2]
[419692118,1775296246211,-506.5681281,0.0001487,2]
[419692119,1775296246223,-927.8318718,0.0001487,2]
[419692120,1775296246233,-2378.99318885,0.0001572,2]
[419692121,1775296246243,-1000.0,0.00015722,2]
[419692122,1775296246252,-561.90478505,0.00015724,2]
[419692123,1775296246264,-1261.267356,0.00015724,2]
[419692124,1775296246275,-5326.15485895,0.00015724,2]
[419692125,1775296246285,-404.501,0.00015724,2]
[419692126,1775296246294,-1000.0,0.00015728,2]
[419692127,1775296246303,-1000.0,0.00015728,2]
[419692128,1775296246313,-1000.0,0.00015729,2]
[419692129,1775296246322,-1000.0,0.00015734,2]
[419692130,1775296246332,-1000.0,0.00015734,2]
[419692131,1775296246341,-348.2695,0.00015736,2]
[419692132,1775296246351,-404.4560565,0.00015736,2]
[419692138,1775297141367,1296.91639097,4.2e-05,2]
[419692139,1775297355175,-316.0,0.00011321,2]
[419692140,1775297355197,-600.0,0.00011321,2]
[419692141,1775297355218,-260.0,0.00011321,2]
[419692148,1775297432815,-629.76731778,0.000107,2]
[419692149,1775297432827,-4447.10351561,0.000107,2]
[419692150,1775297432906,-789.06159669,0.000107,2]
[419692151,1775297432959,-881.86849656,0.000107,2]
[419692154,1775297438458,-725.02184365,0.000107,2]
[419692155,1775297438468,-316.0,0.00011321,2]
[419692156,1775297438478,-3989.48957662,0.00011321,2]
[419692157,1775297438487,-600.0,0.00011321,2]
[419692158,1775297438496,-5707.443206,0.00011321,2]
[419692159,1775297438506,-250.0,0.00011378,2]
[419692160,1775297438515,-975.36672803,0.00011404,2]
[419692161,1775297438524,-300.0,0.00011503,2]
[419692162,1775297438534,-469.0,0.00011503,2]
[419692163,1775297438543,-1200.0,0.00011504,2]
[419692164,1775297438552,-300.0,0.00011504,2]
[419692165,1775297438561,-150.0,0.00011504,2]
[419692166,1775297438571,-300.0,0.00011504,2]
[419692167,1775297438580,-47416.41327571,0.00011504,2]
[419692168,1775297438590,-2469.87,0.00011507,2]
[419692169,1775297438599,-975.36672801,0.0001197,2]
[419692170,1775297438608,-600.0,0.00012453,2]
[419692171,1775297438618,-250.0,0.00012453,2]
[419692172,1775297438627,-1006.02864207,0.00012453,2]
[419692173,1775297438639,-1335.68020852,0.00012453,2]
[419692174,1775297438651,-883.5593628,0.00012453,2]
[419692175,1775297438691,-398.5181422,0.00012453,2]
[419692179,1775297441307,-1376.21364441,0.00012453,2]
[419692180,1775297441317,-600.0,0.00012453,2]
[419692181,1775297441326,-1277.2725342,0.00012485,2]
[419692182,1775297441335,-161.89423665,0.00012485,2]
[419692208,1775297443447,-88.10576335,0.00012485,2]
[419692209,1775297443457,-150.0,0.000125,2]
[419692210,1775297443467,-975.36672801,0.00012535,2]
[419692211,1775297443476,-184.45605129,0.00012548,2]
[419692212,1775297443486,-150.0363523,0.00012548,2]
[419692213,1775297443495,-150.0,0.00012562,2]
[419692214,1775297443504,-266.0,0.00012635,2]
[419692215,1775297443514,-300.0,0.00012635,2]
[419692216,1775297443523,-250.0,0.00013,2]
[419692217,1775297443533,-304.52203213,0.00013091,2]
[419692218,1775297443549,-195.47796787,0.00013091,2]
[419692219,1775297443558,-202.82,0.00013557,2]
[419692220,1775297443568,-1500.0,0.00013567,2]
[419692221,1775297443577,-2217.26,0.00013802,2]
[419692222,1775297443586,-200.0,0.00013995,2]
[419692223,1775297443596,-332.664959,0.0001419,2]
[419692224,1775297443606,-150.0,0.00014301,2]
[419692225,1775297443617,-150.0,0.00014301,2]
[419692226,1775297443626,-204.57064197,0.00014301,2]
[419692227,1775297443635,-6190.232,0.00014322,2]
[419692228,1775297443645,-363.04,0.00014322,2]
[419692229,1775297443654,-5606.62994384,0.00014475,2]
[419692230,1775297443663,-2217.26,0.00014492,2]
[419692231,1775297443673,-500.0,0.00014572,2]
[419692232,1775297443682,-179.35975644,0.00014572,2]
[419692233,1775297443691,-592.23960115,0.00014572,2]
[419692234,1775297443700,-500.0,0.00014572,2]
[419692235,1775297443710,-500.0,0.00014572,2]
[419692236,1775297443720,-500.0,0.00014572,2]
[419692237,1775297443729,-500.0,0.00014572,2]
[419692238,1775297443738,-500.0,0.00014572,2]
[419692239,1775297443747,-500.0,0.00014572,2]
[419692240,1775297443757,-500.0,0.00014572,2]
[419692241,1775297443766,-500.0,0.00014572,2]
[419692242,1775297443776,-500.0,0.00014572,2]
[419692243,1775297443786,-500.0,0.00014572,2]
[419692244,1775297443796,-500.0,0.00014572,2]
[419692245,1775297443806,-500.0,0.00014572,2]
[419692246,1775297443816,-500.0,0.00014572,2]
[419692247,1775297443826,-500.0,0.00014572,2]
[419692248,1775297443835,-500.0,0.00014572,2]
[419692249,1775297443845,-500.0,0.00014572,2]
[419692250,1775297443855,-500.0,0.00014572,2]